[Event "GER-ch Youth-U12 2024"]
[Site "Willingen"]
[Date "2024.05.23"]
[Round "7"]
[White "Balashvili, Amiran"]
[Black "Chua, Daniel James"]
[Result "1-0"]
[ECO "B76"]
[WhiteElo "1682"]
[BlackElo "1751"]
[Annotator "NA RC"]
[PlyCount "165"]
[EventDate "2022.06.05"]
[EventType "swiss"]
[EventRounds "9"]
[EventCountry "GER"]
[SourceTitle "playchess.com"]
[Source "ChessBase"]
[SourceQuality "1"]
[TimeControl "40/4500+30:900+30"]

1. e4 {[%emt 0:00:00]} c5 {[%emt 0:00:00]} 2. Nf3 {[%emt 0:00:00]} d6 {[%emt 0:00:00]} 3. d4 {[%emt 0:00:00]} cxd4 {[%emt 0:00:00]} 4. Nxd4 {[%emt 0:00:00]} Nf6 {[%emt 0:00:00]} 5. Nc3 {[%emt 0:00:00]} g6 {[%emt 0:00:00]} 6. f3 {[%emt 0:00:00]} Bg7 {[%emt 0:00:00]} 7. Be3 {[%emt 0:00:00]} O-O {[%emt 0:00:00]} 8. Qd2 {[%emt 0:00:00]} Nc6 {[%emt 0:00:00]} 9. g4 {[%emt 0:00:00]} Be6 {[%emt 0:00:00]} 10. O-O-O {[%emt 0:00:00]} d5 {[%emt 0:00:00]} 11. Qf2 {[%emt 0:00:00]} Nxd4 {[%emt 0:00:00]} 12. Bxd4 {[%emt 0:00:00]} Qa5 {[%emt 0:00:00]} 13. g5 {[%emt 0:00:00]} Nd7 {[%emt 0:00:00]} 14. Bxg7 {[%emt 0:00:00]} Kxg7 {[%emt 0:00:00]} 15. exd5 {[%emt 0:00:00]} Bf5 {[%emt 0:00:00]} 16. Bd3 {[%emt 0:00:00]} Bxd3 {[%emt 0:00:00]} 17. Rxd3 {[%emt 0:00:00]} b5 {[%emt 0:00:00]} 18. Kb1 {[%emt 0:00:19]} Rac8 {[%emt 0:01:28]} 19. Ne4 {[%emt 0:06:53]} Rc4 {[%emt 0:03:15]} 20. Rd4 {[%emt 0:05:51]} Rfc8 {[%emt 0:15:46]} 21. Rxc4 {[%emt 0:06:05]} Rxc4 {[%emt 0:01:03]} 22. b3 {[%emt 0:00:13]} Rc8 {[%emt 0:11:45]} 23. Rd1 {[%emt 0:07:13]} Qc7 {[%emt 0:07:32]} 24. d6 {[%emt 0:01:30]} exd6 {[%emt 0:00:53]} 25. Nxd6 {[%emt 0:00:24]} Rd8 {[%emt 0:14:24]} 26. Nxb5 {[%emt 0:04:36]} Qa5 {[%emt 0:04:38]} 27. Qe2 {[%emt 0:01:32]} a6 {[%emt 0:03:18]} 28. Nd6 {[%emt 0:00:50]} Nc5 {[%emt 0:09:23]} 29. Rd5 {[%emt 0:02:54]} Qb6 {[%emt 0:04:00]} 30. Qe5+ {[%emt 0:03:34]} Kg8 {[%emt 0:00:17]} 31. Ne8 {[%emt 0:02:08]} Ne6 {[%emt 0:00:14]} 32. Nf6+ {[%emt 0:00:46]} Kf8 {[%emt 0:00:28]} 33. Nd7+ {[%emt 0:00:18]} Rxd7 {[%emt 0:00:04]} 34. Rxd7 {[%emt 0:00:04]} Ke8 {[%emt 0:00:56]} 35. Qd5 {[%emt 0:02:13]} Qg1+ {[%emt 0:00:07]} 36. Kb2 {[%emt 0:00:09]} Qxh2 {[%emt 0:01:06]} 37. Ra7 {[%emt 0:00:32]} Kf8 {[%emt 0:00:08]} 38. Rxa6 {[%emt 0:01:28]} Qf4 {[%emt 0:00:53]} 39. Qd6+ {[%emt 0:00:20]} Qxd6 {[%emt 0:00:06]} 40. Rxd6 {[%emt 0:00:03]} Nxg5 {[%emt 0:00:06]} 41. a4 {[%emt 0:15:13]} Ke7 {[%emt 0:15:44]} 42. Rd3 {[%emt 0:00:14]} Ne6 {[%emt 0:00:20]} 43. a5 {[%emt 0:00:15]} Nc5 {[%emt 0:00:31]} 44. Rd4 {[%emt 0:00:17]} h5 {[%emt 0:00:12]} 45. b4 {[%emt 0:00:05]} Na6 {[%emt 0:00:25]} 46. b5 {[%emt 0:00:02]} Nc7 {[%emt 0:00:06]} 47. b6 {[%emt 0:00:09]} Na6 {[%emt 0:00:03]} 48. b7 {[%emt 0:00:08]} g5 {[%emt 0:00:13]} 49. Rb4 {[%emt 0:00:15]} Nb8 {[%emt 0:00:03]} 50. a6 {[%emt 0:00:09]} Nxa6 {[%emt 0:00:03]} 51. b8=Q {[%emt 0:00:06]} Nxb8 {[%emt 0:00:01]} 52. Rxb8 {[%emt 0:00:05]} g4 {[%emt 0:00:50]} 53. fxg4 {[%emt 0:00:14]} hxg4 {[%emt 0:00:02]} 54. Kc1 {[%emt 0:00:22]} f5 {[%emt 0:00:07]} 55. Rg8 {[%emt 0:00:00]} Kf7 {[%emt 0:00:00]} 56. Rh8 {[%emt 0:00:00]} g3 {[%emt 0:00:17]} 57. Rh1 {[%emt 0:00:00]} Ke6 {[%emt 0:00:14]} 58. Kd2 {[%emt 0:00:00]} f4 {[%emt 0:00:07]} 59. Ke2 {[%emt 0:00:00]} Ke5 {[%emt 0:00:00]} 60. Kf3 {[%emt 0:00:00]} Kf5 {[%emt 0:00:09]} 61. c4 {[%emt 0:00:35]} Ke5 {[%emt 0:00:08]} 62. c5 {[%emt 0:00:06]} Kd4 {[%emt 0:00:12]} 63. c6 {[%emt 0:00:23]} Kd3 {[%emt 0:00:07]} 64. c7 {[%emt 0:00:12]} g2 {[%emt 0:00:03]} 65. Kxg2 {[%emt 0:00:05]} Ke2 {[%emt 0:00:13]} 66. Re1+ {[%emt 0:00:11]} Kxe1 {[%emt 0:00:00]} 67. c8=Q {[%emt 0:00:04]} Ke2 {[%emt 0:00:08]} 68. Qg4+ {[%emt 0:00:06]} Ke3 {[%emt 0:00:04]} 69. Qf3+ {[%emt 0:00:04]} Kd4 {[%emt 0:00:03]} 70. Qxf4+ {[%emt 0:00:04]} Kd5 {[%emt 0:00:03]} 71. Kf3 {[%emt 0:00:08]} Kc5 {[%emt 0:00:02]} 72. Ke3 {[%emt 0:00:04]} Kd5 {[%emt 0:00:01]} 73. Qd4+ {[%emt 0:00:09]} Ke6 {[%emt 0:00:00]} 74. Qc5 {[%emt 0:00:11]} Kf6 {[%emt 0:00:01]} 75. Kf4 {[%emt 0:00:12]} Ke6 {[%emt 0:00:00]} 76. Qe5+ {[%emt 0:00:06]} Kd7 {[%emt 0:00:01]} 77. Qf6 {[%emt 0:00:10]} Kc7 {[%emt 0:00:01]} 78. Ke5 {[%emt 0:00:06]} Kd7 {[%emt 0:00:02]} 79. Qd6+ {[%emt 0:00:08]} Kc8 {[%emt 0:00:00]} 80. Qe7 {[%emt 0:00:09]} Kb8 {[%emt 0:00:00]} 81. Kd6 {[%emt 0:00:05]} Ka8 {[%emt 0:00:04]} 82. Kc6 {[%emt 0:00:03]} Kb8 {[%emt 0:00:01]} 83. Qb7# {[%emt 0:00:35]} 1-0

[Event "GER-ch Youth-U12 2024"]
[Site "Willingen"]
[Date "2024.05.23"]
[Round "7"]
[White "Heitmann, Erik"]
[Black "Hepp, Daniel"]
[Result "1/2-1/2"]
[ECO "A13"]
[WhiteElo "1644"]
[BlackElo "1721"]
[Annotator "NA RC"]
[PlyCount "73"]
[EventDate "2022.06.05"]
[EventType "swiss"]
[EventRounds "9"]
[EventCountry "GER"]
[SourceTitle "playchess.com"]
[Source "ChessBase"]
[SourceQuality "1"]
[TimeControl "40/4500+30:900+30"]

1. Nf3 {[%emt 0:00:00]} Nf6 {[%emt 0:00:00]} 2. e3 {[%emt 0:00:00]} d5 {[%emt 0:00:00]} 3. c4 {[%emt 0:00:00]} e6 {[%emt 0:00:00]} 4. b3 {[%emt 0:00:00]} c5 {[%emt 0:00:00]} 5. cxd5 {[%emt 0:00:00]} exd5 {[%emt 0:00:00]} 6. Bb2 {[%emt 0:00:00]} Be7 {[%emt 0:00:00]} 7. Be2 {[%emt 0:00:00]} O-O {[%emt 0:00:00]} 8. O-O {[%emt 0:00:00]} Nc6 {[%emt 0:00:00]} 9. d4 {[%emt 0:00:00]} cxd4 {[%emt 0:00:00]} 10. Nxd4 {[%emt 0:00:00]} Qb6 {[%emt 0:00:00]} 11. Na3 {[%emt 0:00:00]} Bxa3 {[%emt 0:02:01]} 12. Bxa3 {[%emt 0:00:00]} Nxd4 {[%emt 0:00:34]} 13. Qxd4 {[%emt 0:00:08]} Qxd4 {[%emt 0:01:08]} 14. exd4 {[%emt 0:00:10]} Re8 {[%emt 0:00:32]} 15. Bd3 {[%emt 0:02:33]} Be6 {[%emt 0:10:54]} 16. Rac1 {[%emt 0:01:08]} Rac8 {[%emt 0:01:06]} 17. f3 {[%emt 0:08:19]} Bd7 {[%emt 0:06:26]} 18. Kf2 {[%emt 0:00:35]} Nh5 {[%emt 0:08:28]} 19. g3 {[%emt 0:01:17]} g6 {[%emt 0:00:03]} 20. Rc5 {[%emt 0:08:12]} Bc6 {[%emt 0:01:34]} 21. Rfc1 {[%emt 0:01:28]} Ng7 {[%emt 0:06:30]} 22. Bb2 {[%emt 0:03:50]} Ne6 {[%emt 0:05:34]} 23. R5c2 {[%emt 0:00:39]} a6 {[%emt 0:04:19]} 24. a4 {[%emt 0:01:53]} Bd7 {[%emt 0:07:04]} 25. f4 {[%emt 0:03:30]} f5 {[%emt 0:04:50]} 26. Rxc8 {[%emt 0:01:09]} Rxc8 {[%emt 0:03:25]} 27. Re1 {[%emt 0:09:08]} Kf7 {[%emt 0:01:36]} 28. h3 {[%emt 0:01:00]} Kf6 {[%emt 0:02:26]} 29. Kf3 {[%emt 0:02:49]} h5 {[%emt 0:02:15]} 30. Re5 {[%emt 0:00:41]} Nc7 {[%emt 0:00:45]} 31. Ba3 {[%emt 0:02:20]} Be6 {[%emt 0:02:54]} 32. Bc5 {[%emt 0:02:26]} Na8 {[%emt 0:05:55]} 33. Re3 {[%emt 0:01:54]} Re8 {[%emt 0:04:03]} 34. b4 {[%emt 0:06:20]} Bd7 {[%emt 0:02:53]} 35. Re5 {[%emt 0:01:01]} Bxa4 {[%emt 0:01:31]} 36. Bb1 {[%emt 0:01:25]} Bc6 {[%emt 0:01:10]} 37. Ba2 {[%emt 0:00:54]} 1/2-1/2

[Event "GER-ch Youth-U12 2024"]
[Site "Willingen"]
[Date "2024.05.23"]
[Round "7"]
[White "Doeding, Alexander"]
[Black "Obermair, Hannes"]
[Result "0-1"]
[ECO "B22"]
[WhiteElo "1633"]
[BlackElo "1668"]
[Annotator "NA RC"]
[PlyCount "100"]
[EventDate "2022.06.05"]
[EventType "swiss"]
[EventRounds "9"]
[EventCountry "GER"]
[SourceTitle "playchess.com"]
[Source "ChessBase"]
[SourceQuality "1"]
[TimeControl "40/4500+30:900+30"]

1. e4 {[%emt 0:00:00]} c5 {[%emt 0:00:00]} 2. c3 {[%emt 0:00:00]} Nf6 {[%emt 0:00:00]} 3. e5 {[%emt 0:00:00]} Nd5 {[%emt 0:00:00]} 4. Nf3 {[%emt 0:00:00]} Nc6 {[%emt 0:00:00]} 5. Bc4 {[%emt 0:00:00]} Nb6 {[%emt 0:00:00]} 6. Bb3 {[%emt 0:00:00]} d6 {[%emt 0:00:00]} 7. exd6 {[%emt 0:00:00]} e6 {[%emt 0:00:00]} 8. O-O {[%emt 0:00:00]} Bxd6 {[%emt 0:00:00]} 9. d4 {[%emt 0:00:00]} cxd4 {[%emt 0:00:00]} 10. cxd4 {[%emt 0:00:00]} O-O {[%emt 0:00:00]} 11. Nc3 {[%emt 0:00:00]} Be7 {[%emt 0:00:00]} 12. Bf4 {[%emt 0:02:02]} Bf6 {[%emt 0:03:11]} 13. Nb5 {[%emt 0:22:08]} a6 {[%emt 0:07:52]} 14. Nd6 {[%emt 0:03:17]} Be7 {[%emt 0:07:45]} 15. Ne4 {[%emt 0:02:28]} Nd5 {[%emt 0:03:17]} 16. Bg3 {[%emt 0:02:57]} b6 {[%emt 0:04:36]} 17. a3 {[%emt 0:03:18]} Bb7 {[%emt 0:01:22]} 18. Bc2 {[%emt 0:05:28]} Nf6 {[%emt 0:03:14]} 19. Qd3 {[%emt 0:06:34]} Nxe4 {[%emt 0:03:25]} 20. Qxe4 {[%emt 0:00:16]} g6 {[%emt 0:01:28]} 21. Rad1 {[%emt 0:02:38]} Na5 {[%emt 0:04:10]} 22. Qf4 {[%emt 0:02:29]} Bf6 {[%emt 0:04:31]} 23. Ne5 {[%emt 0:04:32]} Bg7 {[%emt 0:02:11]} 24. Ng4 {[%emt 0:02:22]} Rc8 {[%emt 0:04:04]} 25. Bb1 {[%emt 0:01:02]} Nc4 {[%emt 0:03:58]} 26. Nh6+ {[%emt 0:08:58]} Bxh6 {[%emt 0:03:42]} 27. Qxh6 {[%emt 0:00:07]} Nxb2 {[%emt 0:01:28]} 28. Rde1 {[%emt 0:01:49]} Nc4 {[%emt 0:02:10]} 29. Bh4 {[%emt 0:01:41]} Qxd4 {[%emt 0:05:00]} 30. Be4 {[%emt 0:04:39]} Bxe4 {[%emt 0:02:19]} 31. Rxe4 {[%emt 0:00:12]} Qg7 {[%emt 0:07:07]} 32. Qf4 {[%emt 0:01:56]} e5 {[%emt 0:01:05]} 33. Qg3 {[%emt 0:02:00]} f5 {[%emt 0:01:21]} 34. Re2 {[%emt 0:00:25]} h6 {[%emt 0:01:44]} 35. f4 {[%emt 0:02:55]} exf4 {[%emt 0:01:00]} 36. Qd3 {[%emt 0:01:50]} g5 {[%emt 0:05:06]} 37. Bf2 {[%emt 0:01:15]} b5 {[%emt 0:01:07]} 38. Rfe1 {[%emt 0:01:05]} Rcd8 {[%emt 0:01:40]} 39. Qf3 {[%emt 0:01:29]} Nd2 {[%emt 0:03:23]} 40. Qc6 {[%emt 0:01:33]} Rf6 {[%emt 0:01:31]} 41. Re6 {[%emt 0:16:59]} Rxe6 {[%emt 0:00:00]} 42. Rxe6 {[%emt 0:00:00]} Ne4 {[%emt 0:00:00]} 43. g4 {[%emt 0:00:00]} Qa1+ {[%emt 0:00:00]} 44. Kg2 {[%emt 0:00:00]} f3+ {[%emt 0:00:00]} 45. Kxf3 {[%emt 0:00:00]} Qd1+ {[%emt 0:00:00]} 46. Kg2 {[%emt 0:00:00]} Qxg4+ {[%emt 0:00:00]} 47. Bg3 {[%emt 0:00:00]} Rd2+ {[%emt 0:00:00]} 48. Kf1 {[%emt 0:00:00]} Qd1+ {[%emt 0:00:00]} 49. Be1 {[%emt 0:00:00]} Qe2+ {[%emt 0:00:00]} 50. Kg1 {[%emt 0:00:00]} Qg2# {[%emt 0:00:00]} 0-1

[Event "GER-ch Youth-U12 2024"]
[Site "Willingen"]
[Date "2024.05.23"]
[Round "7"]
[White "Hagn, Tobias"]
[Black "Andersen, Jonathan"]
[Result "1/2-1/2"]
[ECO "C45"]
[WhiteElo "1631"]
[BlackElo "1693"]
[Annotator "NA RC"]
[PlyCount "80"]
[EventDate "2022.06.05"]
[EventType "swiss"]
[EventRounds "9"]
[EventCountry "GER"]
[SourceTitle "playchess.com"]
[Source "ChessBase"]
[SourceQuality "1"]
[TimeControl "40/4500+30:900+30"]

1. e4 {[%emt 0:00:00]} e5 {[%emt 0:00:00]} 2. Nf3 {[%emt 0:00:00]} Nc6 {[%emt 0:00:00]} 3. d4 {[%emt 0:00:00]} exd4 {[%emt 0:00:00]} 4. Nxd4 {[%emt 0:00:00]} Nf6 {[%emt 0:00:00]} 5. Nxc6 {[%emt 0:00:00]} bxc6 {[%emt 0:00:00]} 6. e5 {[%emt 0:00:00]} Qe7 {[%emt 0:00:00]} 7. Qe2 {[%emt 0:00:00]} Nd5 {[%emt 0:00:00]} 8. c4 {[%emt 0:00:00]} Ba6 {[%emt 0:00:00]} 9. Qe4 {[%emt 0:00:00]} Nb6 {[%emt 0:00:00]} 10. Nc3 {[%emt 0:00:00]} Qe6 {[%emt 0:00:00]} 11. c5 {[%emt 0:00:00]} Bxf1 {[%emt 0:00:00]} 12. cxb6 {[%emt 0:00:00]} Ba6 {[%emt 0:00:00]} 13. bxc7 {[%emt 0:00:00]} Bc5 {[%emt 0:00:00]} 14. Be3 {[%emt 0:00:00]} Bxe3 {[%emt 0:00:00]} 15. Qxe3 {[%emt 0:00:00]} O-O {[%emt 0:00:00]} 16. O-O-O {[%emt 0:00:19]} Rfc8 {[%emt 0:00:00]} 17. Rd6 {[%emt 0:01:50]} Qe7 {[%emt 0:01:14]} 18. Rhd1 {[%emt 0:03:59]} Rxc7 {[%emt 0:00:23]} 19. Ne4 {[%emt 0:00:44]} Bc4 {[%emt 0:05:38]} 20. Qc5 {[%emt 0:03:24]} Be6 {[%emt 0:04:09]} 21. Kb1 {[%emt 0:00:51]} Re8 {[%emt 0:03:28]} 22. Ka1 {[%emt 0:10:00]} Bf5 {[%emt 0:07:16]} 23. Ng3 {[%emt 0:10:45]} Qxe5 {[%emt 0:03:13]} 24. Qxe5 {[%emt 0:00:13]} Rxe5 {[%emt 0:00:06]} 25. Nxf5 {[%emt 0:00:11]} Rxf5 {[%emt 0:00:04]} 26. Rxd7 {[%emt 0:00:14]} Rxd7 {[%emt 0:00:05]} 27. Rxd7 {[%emt 0:00:05]} Kf8 {[%emt 0:00:39]} 28. Rd2 {[%emt 0:00:41]} Re5 {[%emt 0:01:58]} 29. Kb1 {[%emt 0:01:34]} g5 {[%emt 0:00:39]} 30. Kc2 {[%emt 0:05:50]} Ke7 {[%emt 0:01:47]} 31. Kd1 {[%emt 0:04:42]} Rd5 {[%emt 0:03:29]} 32. f3 {[%emt 0:33:37]} Ke6 {[%emt 0:00:31]} 33. Ke2 {[%emt 0:00:53]} Rxd2+ {[%emt 0:00:55]} 34. Kxd2 {[%emt 0:02:14]} a5 {[%emt 0:00:58]} 35. g3 {[%emt 0:05:09]} f5 {[%emt 0:00:19]} 36. Kd3 {[%emt 0:00:22]} Kd5 {[%emt 0:00:11]} 37. h4 {[%emt 0:02:25]} gxh4 {[%emt 0:03:35]} 38. gxh4 {[%emt 0:00:16]} a4 {[%emt 0:00:31]} 39. b4 {[%emt 0:02:05]} axb3 {[%emt 0:05:18]} 40. axb3 {[%emt 0:00:08]} Kc5 {[%emt 0:05:00]} 1/2-1/2

[Event "GER-ch Youth-U12 2024"]
[Site "Willingen"]
[Date "2024.05.23"]
[Round "7"]
[White "Kaza, Charith"]
[Black "Fass, Ben"]
[Result "1-0"]
[ECO "C28"]
[WhiteElo "1503"]
[BlackElo "1027"]
[Annotator "NA RC"]
[PlyCount "111"]
[EventDate "2022.06.05"]
[EventType "swiss"]
[EventRounds "9"]
[EventCountry "GER"]
[SourceTitle "playchess.com"]
[Source "ChessBase"]
[SourceQuality "1"]
[TimeControl "40/4500+30:900+30"]

1. e4 {[%emt 0:00:00]} e5 {[%emt 0:00:00]} 2. Bc4 {[%emt 0:00:00]} Nf6 {[%emt 0:00:00]} 3. Nc3 {[%emt 0:00:00]} Bc5 {[%emt 0:00:00]} 4. d3 {[%emt 0:00:00]} Nc6 {[%emt 0:00:00]} 5. h3 {[%emt 0:00:00]} b6 {[%emt 0:00:00]} 6. Nge2 {[%emt 0:00:00]} Bb7 {[%emt 0:00:00]} 7. O-O {[%emt 0:00:00]} O-O {[%emt 0:00:00]} 8. a3 {[%emt 0:00:00]} Ne7 {[%emt 0:00:00]} 9. Bg5 {[%emt 0:00:00]} Ng6 {[%emt 0:00:00]} 10. Nd5 {[%emt 0:00:00]} Be7 {[%emt 0:00:00]} 11. Nxe7+ {[%emt 0:00:00]} Qxe7 {[%emt 0:00:00]} 12. Kh1 {[%emt 0:00:00]} h6 {[%emt 0:00:00]} 13. Be3 {[%emt 0:00:00]} Rad8 {[%emt 0:02:16]} 14. f4 {[%emt 0:00:00]} d5 {[%emt 0:01:58]} 15. exd5 {[%emt 0:00:00]} Nxd5 {[%emt 0:00:45]} 16. Bd2 {[%emt 0:01:45]} Nh4 {[%emt 0:03:12]} 17. Bxd5 {[%emt 0:07:36]} Bxd5 {[%emt 0:02:15]} 18. Rg1 {[%emt 0:00:28]} Qe6 {[%emt 0:05:42]} 19. Kh2 {[%emt 0:00:40]} Nxg2 {[%emt 0:06:38]} 20. Rxg2 {[%emt 0:00:19]} Bxg2 {[%emt 0:00:32]} 21. Kxg2 {[%emt 0:00:05]} Qg6+ {[%emt 0:00:28]} 22. Ng3 {[%emt 0:01:33]} exf4 {[%emt 0:01:01]} 23. Bxf4 {[%emt 0:00:09]} Rd5 {[%emt 0:00:55]} 24. Qg4 {[%emt 0:04:29]} Qxg4 {[%emt 0:02:31]} 25. hxg4 {[%emt 0:00:12]} c6 {[%emt 0:00:34]} 26. Re1 {[%emt 0:01:28]} f6 {[%emt 0:00:54]} 27. Nf5 {[%emt 0:01:41]} Rc5 {[%emt 0:02:05]} 28. c4 {[%emt 0:00:07]} Ra5 {[%emt 0:01:37]} 29. Ne7+ {[%emt 0:00:40]} Kf7 {[%emt 0:00:45]} 30. Nf5 {[%emt 0:00:47]} b5 {[%emt 0:02:26]} 31. Re7+ {[%emt 0:02:56]} Kg8 {[%emt 0:01:00]} 32. Rxg7+ {[%emt 0:00:04]} Kh8 {[%emt 0:00:44]} 33. Bd6 {[%emt 0:01:41]} Rg8 {[%emt 0:00:43]} 34. Rxg8+ {[%emt 0:02:04]} Kxg8 {[%emt 0:00:19]} 35. Bb4 {[%emt 0:00:53]} Ra6 {[%emt 0:00:48]} 36. c5 {[%emt 0:00:09]} Kf7 {[%emt 0:04:43]} 37. Nxh6+ {[%emt 0:02:08]} Ke6 {[%emt 0:00:34]} 38. Nf5 {[%emt 0:00:04]} Ke5 {[%emt 0:02:55]} 39. b3 {[%emt 0:00:04]} Kd5 {[%emt 0:00:14]} 40. Kf3 {[%emt 0:00:00]} Ke5 {[%emt 0:01:20]} 41. Ke3 {[%emt 0:14:04]} Kd5 {[%emt 0:16:13]} 42. Nd6 {[%emt 0:00:27]} Ke5 {[%emt 0:00:40]} 43. Ne8 {[%emt 0:00:09]} Rxa3 {[%emt 0:00:46]} 44. Bxa3 {[%emt 0:00:16]} a6 {[%emt 0:00:21]} 45. b4 {[%emt 0:00:31]} Ke6 {[%emt 0:00:29]} 46. Nc7+ {[%emt 0:00:03]} Kd7 {[%emt 0:00:17]} 47. Nxa6 {[%emt 0:00:15]} Kc8 {[%emt 0:00:13]} 48. Bb2 {[%emt 0:00:11]} Kb7 {[%emt 0:01:27]} 49. Bxf6 {[%emt 0:00:07]} Kxa6 {[%emt 0:00:17]} 50. g5 {[%emt 0:00:04]} Kb7 {[%emt 0:00:10]} 51. g6 {[%emt 0:00:07]} Kc7 {[%emt 0:00:12]} 52. g7 {[%emt 0:00:09]} Kd7 {[%emt 0:00:19]} 53. g8=Q {[%emt 0:00:23]} Kc7 {[%emt 0:00:15]} 54. Qd8+ {[%emt 0:00:21]} Kb7 {[%emt 0:00:09]} 55. Be5 {[%emt 0:00:30]} Ka6 {[%emt 0:00:21]} 56. Qb6# {[%emt 0:00:09]} 1-0

[Event "GER-ch Youth-U12 2024"]
[Site "Willingen"]
[Date "2024.05.23"]
[Round "7"]
[White "König, Lian"]
[Black "Schellinger, Florian"]
[Result "0-1"]
[ECO "C54"]
[WhiteElo "1180"]
[BlackElo "863"]
[Annotator "NA"]
[PlyCount "54"]
[EventDate "2022.06.05"]
[EventType "swiss"]
[EventRounds "9"]
[EventCountry "GER"]
[SourceTitle "playchess.com"]
[Source "ChessBase"]
[SourceQuality "1"]
[TimeControl "40/4500+30:900+30"]

1. e4 {[%emt 0:00:00]} e5 {[%emt 0:00:00]} 2. Nf3 {[%emt 0:00:00]} Nc6 {[%emt 0:00:00]} 3. Bc4 {[%emt 0:00:00]} Nf6 {[%emt 0:00:00]} 4. d3 {[%emt 0:00:00]} Bc5 {[%emt 0:00:00]} 5. c3 {[%emt 0:00:00]} Bb6 {[%emt 0:00:00]} 6. O-O {[%emt 0:00:00]} d6 {[%emt 0:00:00]} 7. a3 {[%emt 0:00:00]} Bg4 {[%emt 0:00:00]} 8. Nbd2 {[%emt 0:00:00]} O-O {[%emt 0:00:00]} 9. h3 {[%emt 0:00:00]} Bh5 {[%emt 0:00:00]} 10. Re1 {[%emt 0:00:00]} h6 {[%emt 0:00:00]} 11. Nf1 {[%emt 0:00:00]} a6 {[%emt 0:00:00]} 12. Ng3 {[%emt 0:00:00]} Qd7 {[%emt 0:00:00]} 13. Nxh5 {[%emt 0:00:00]} Nxh5 {[%emt 0:00:00]} 14. Nxe5 {[%emt 0:00:00]} Nxe5 {[%emt 0:00:00]} 15. Qxh5 {[%emt 0:00:00]} Qe7 {[%emt 0:00:34]} 16. Qd1 {[%emt 0:08:44]} Qf6 {[%emt 0:00:32]} 17. Be3 {[%emt 0:00:55]} Bxe3 {[%emt 0:01:02]} 18. Rxe3 {[%emt 0:00:29]} b5 {[%emt 0:01:08]} 19. Ba2 {[%emt 0:02:17]} c5 {[%emt 0:03:28]} 20. d4 {[%emt 0:13:17]} cxd4 {[%emt 0:00:27]} 21. cxd4 {[%emt 0:00:20]} Nc6 {[%emt 0:00:26]} 22. Bd5 {[%emt 0:01:03]} Rac8 {[%emt 0:00:21]} 23. Bxc6 {[%emt 0:03:53]} Rxc6 {[%emt 0:00:18]} 24. Qd2 {[%emt 0:07:27]} Rd8 {[%emt 0:00:35]} 25. Rg3 {[%emt 0:03:11]} d5 {[%emt 0:00:33]} 26. e5 {[%emt 0:02:10]} Qf5 {[%emt 0:01:33]} 27. Qxh6 {[%emt 0:01:54]} Rxh6 {[%emt 0:00:13]} 0-1

[Event "GER-ch Youth-U12 2024"]
[Site "Willingen"]
[Date "2024.05.24"]
[Round "8"]
[White "Tarasenko, Nazar"]
[Black "Belin, Anton"]
[Result "0-1"]
[ECO "D32"]
[WhiteElo "2061"]
[BlackElo "1948"]
[Annotator "RC"]
[PlyCount "56"]
[EventDate "2022.06.05"]
[EventType "swiss"]
[EventRounds "9"]
[EventCountry "GER"]
[SourceTitle "playchess.com"]
[Source "ChessBase"]
[SourceQuality "1"]
[TimeControl "40/4500+30:900+30"]

1. d4 {[%emt 0:00:00]} d5 {[%emt 0:00:00]} 2. c4 {[%emt 0:00:00]} e6 {[%emt 0:00:00]} 3. Nc3 {[%emt 0:00:00]} c5 {[%emt 0:00:00]} 4. cxd5 {[%emt 0:00:00]} exd5 {[%emt 0:00:00]} 5. Nf3 {[%emt 0:00:00]} Nf6 {[%emt 0:00:00]} 6. Bg5 {[%emt 0:00:00]} Be6 {[%emt 0:00:00]} 7. e3 {[%emt 0:00:00]} c4 {[%emt 0:00:00]} 8. Be2 {[%emt 0:00:00]} Be7 {[%emt 0:00:00]} 9. O-O {[%emt 0:00:00]} Nc6 {[%emt 0:00:00]} 10. Ne5 {[%emt 0:00:00]} O-O {[%emt 0:00:00]} 11. f4 {[%emt 0:00:00]} Ne4 {[%emt 0:00:41]} 12. Nxc6 {[%emt 0:00:00]} bxc6 {[%emt 0:02:13]} 13. Bxe7 {[%emt 0:00:00]} Nxc3 {[%emt 0:00:59]} 14. bxc3 {[%emt 0:00:00]} Qxe7 {[%emt 0:00:06]} 15. f5 {[%emt 0:00:00]} Bd7 {[%emt 0:00:52]} 16. f6 {[%emt 0:00:00]} Qxe3+ {[%emt 0:01:08]} 17. Kh1 {[%emt 0:00:00]} g6 {[%emt 0:01:46]} 18. Bg4 {[%emt 0:00:00]} Bxg4 {[%emt 0:00:38]} 19. Qxg4 {[%emt 0:00:00]} Rae8 {[%emt 0:01:14]} 20. Qh4 {[%emt 0:00:26]} Re4 {[%emt 0:01:22]} 21. g4 {[%emt 0:01:48]} h5 {[%emt 0:02:45]} 22. h3 {[%emt 0:00:00]} Rfe8 {[%emt 0:01:03]} 23. Rae1 {[%emt 0:00:26]} Qxc3 {[%emt 0:01:38]} 24. Rxe4 {[%emt 0:04:53]} Rxe4 {[%emt 0:00:21]} 25. Kg2 {[%emt 0:01:08]} hxg4 {[%emt 0:03:38]} 26. hxg4 {[%emt 0:00:58]} Qxd4 {[%emt 0:00:20]} 27. Qh6 {[%emt 0:00:43]} Re2+ {[%emt 0:00:25]} 28. Kh3 {[%emt 0:00:59]} Qd3+ {[%emt 0:00:06]} 0-1